fUSD/lending_fUSD_20260416
["ID","MTS","AMOUNT","RATE_DAILY","PERIOD"]
[420618154,1776349833758,-600.0,9.7e-05,3]
[420618155,1776349833767,-3617.90990963,9.785e-05,2]
[420618156,1776349833777,-500.0,9.789e-05,2]
[420618157,1776349833786,-260.06743709,9.789e-05,2]
[420618158,1776349833796,-500.0,9.789e-05,2]
[420618159,1776349833806,-500.0,9.789e-05,2]
[420618160,1776349833815,-271.65165474,9.789e-05,2]
[420618161,1776349833825,-500.0,9.789e-05,2]
[420618162,1776349833834,-500.0,9.789e-05,2]
[420618163,1776349833843,-500.0,9.789e-05,2]
[420618164,1776349833853,-500.0,9.789e-05,2]
[420618165,1776349833862,-500.0,9.789e-05,2]
[420618166,1776349833872,-500.0,9.789e-05,2]
[420618167,1776349833882,-500.0,9.789e-05,2]
[420618168,1776349833891,-500.0,9.789e-05,2]
[420618169,1776349833901,-500.0,9.789e-05,2]
[420618170,1776349833911,-500.0,9.789e-05,2]
[420618171,1776349833921,-500.0,9.789e-05,2]
[420618172,1776349833931,-500.0,9.789e-05,2]
[420618173,1776349833940,-500.0,9.789e-05,2]
[420618174,1776349833950,-500.0,9.789e-05,2]
[420618175,1776349833960,-500.0,9.789e-05,2]
[420618176,1776349833969,-500.0,9.789e-05,2]
[420618177,1776349833979,-500.0,9.789e-05,2]
[420618178,1776349833988,-500.0,9.789e-05,2]
[420618179,1776349833997,-500.0,9.789e-05,2]
[420618180,1776349834006,-500.0,9.789e-05,2]
[420618181,1776349834016,-500.0,9.789e-05,2]
[420618182,1776349834026,-500.0,9.789e-05,2]
[420618183,1776349834035,-500.0,9.789e-05,2]
[420618184,1776349834045,-500.0,9.789e-05,2]
[420618185,1776349834055,-418.71665123,9.789e-05,2]
[420618186,1776349834065,-500.0,9.789e-05,2]
[420618187,1776349834075,-500.0,9.789e-05,2]
[420618188,1776349834086,-500.0,9.789e-05,2]
[420618189,1776349834095,-500.0,9.789e-05,2]
[420618190,1776349834106,-500.0,9.789e-05,2]
[420618191,1776349834117,-406.92025566,9.789e-05,2]
[420618192,1776349834126,-500.0,9.789e-05,2]
[420618193,1776349834136,-500.0,9.789e-05,2]
[420618194,1776349834146,-500.0,9.789e-05,2]
[420618195,1776349834156,-500.0,9.789e-05,2]
[420618196,1776349834165,-207.16483834,9.789e-05,2]
[420618197,1776349834175,-500.0,9.789e-05,2]
[420618198,1776349834184,-500.0,9.789e-05,2]
[420618199,1776349834194,-500.0,9.789e-05,2]
[420618200,1776349834204,-300.0,9.789e-05,2]
[420618201,1776349834214,-647.43521935,9.789e-05,2]
[420618202,1776349834224,-647.43521935,9.789e-05,2]
[420618203,1776349834234,-647.43521935,9.789e-05,2]
[420618204,1776349834244,-647.43521935,9.789e-05,2]
[420618205,1776349834254,-647.43521935,9.789e-05,2]
[420618206,1776349834264,-647.43521935,9.789e-05,2]
[420618207,1776349834274,-578.20924308,9.79e-05,2]
[420618208,1776349834283,-200.0,9.79e-05,2]
[420618209,1776349834293,-209.40437685,9.79e-05,2]
[420618210,1776349834302,-1428.38747117,9.79e-05,2]
[420618211,1776349834312,-6540.93113395,9.79e-05,2]
[420618212,1776349834323,-721.12765535,9.79e-05,2]
[420618213,1776349834332,-151.0,9.79e-05,2]
[420618214,1776349834341,-200.0,9.79e-05,2]
[420618215,1776349834351,-500.0,9.79e-05,2]
[420618216,1776349834361,-500.0,9.79e-05,2]
[420618217,1776349834371,-500.0,9.79e-05,2]
[420618218,1776349834381,-500.0,9.79e-05,2]
[420618219,1776349834390,-151.0,9.79e-05,2]
[420618220,1776349834399,-500.0,9.79e-05,2]
[420618221,1776349834409,-500.0,9.79e-05,2]
[420618222,1776349834418,-500.0,9.79e-05,2]
[420618223,1776349834427,-500.0,9.79e-05,2]
[420618224,1776349834436,-500.0,9.79e-05,2]
[420618225,1776349834446,-500.0,9.79e-05,2]
[420618226,1776349834456,-500.0,9.79e-05,2]
[420618227,1776349834465,-500.0,9.79e-05,2]
[420618228,1776349834475,-170.00000002,9.79e-05,2]
[420618229,1776349834487,-211.85264423,9.79e-05,2]
[420618230,1776349834497,-674.63978611,9.79e-05,2]
[420618231,1776349834507,-174.61919141,9.79e-05,2]
[420618232,1776349834517,-743.50770149,9.79e-05,2]
[420618233,1776349834527,-900.0,9.8e-05,3]
[420618234,1776349834537,-151.0,9.845e-05,2]
[420618235,1776349834547,-500.0,9.845e-05,2]
[420618236,1776349834556,-151.0,9.9e-05,2]
[420618237,1776349834566,-500.0,9.9e-05,2]
[420618238,1776349834576,-1200.0,9.9e-05,3]
[420618239,1776349834585,-350.0,9.923e-05,2]
[420618240,1776349834595,-151.0,9.955e-05,2]
[420618241,1776349834605,-500.0,9.955e-05,2]
[420618242,1776349834614,-500.0,0.0001,2]
[420618243,1776349834626,-500.0,0.0001,2]
[420618244,1776349834635,-151.0,0.0001,2]
[420618245,1776349834645,-500.0,0.0001,2]
[420618246,1776349834655,-151.0,0.0001,2]
[420618247,1776349834665,-500.0,0.0001,2]
[420618248,1776349834675,-151.0,0.0001,2]
[420618249,1776349834686,-500.0,0.0001,2]
[420618250,1776349834696,-200.0,0.0001,2]
[420618251,1776349834706,-151.0,0.0001,2]
[420618252,1776349834716,-500.0,0.0001,2]
[420618253,1776349834725,-151.0,0.0001,2]
[420618254,1776349834735,-500.0,0.0001,2]
[420618255,1776349834744,-151.0,0.0001,2]
[420618256,1776349834754,-500.0,0.0001,2]
[420618257,1776349834764,-151.0,0.0001,2]
[420618258,1776349834773,-500.0,0.0001,2]
[420618259,1776349834783,-151.0,0.0001,2]
[420618260,1776349834793,-500.0,0.0001,2]
[420618261,1776349834803,-151.0,0.0001,2]
[420618262,1776349834813,-500.0,0.0001,2]
[420618263,1776349834822,-151.0,0.0001,2]
[420618264,1776349834832,-151.0,0.0001,2]
[420618265,1776349834841,-500.0,0.0001,2]
[420618266,1776349834851,-151.0,0.0001,2]
[420618267,1776349834860,-500.0,0.0001,2]
[420618268,1776349834870,-500.0,0.0001,2]
[420618269,1776349834880,-151.0,0.0001,2]
[420618270,1776349834889,-500.0,0.0001,2]
[420618271,1776349834900,-151.0,0.0001,2]
[420618272,1776349834909,-500.0,0.0001,2]
[420618273,1776349834918,-151.0,0.0001,2]
[420618274,1776349834927,-500.0,0.0001,2]
[420618275,1776349834936,-151.0,0.0001,2]
[420618276,1776349834946,-1500.0,0.0001,3]
[420618277,1776349834955,-500.0,0.0001,2]
[420618278,1776349834964,-151.0,0.0001,2]
[420618279,1776349834973,-500.0,0.0001,2]
[420618280,1776349834982,-151.0,0.0001,2]
[420618281,1776349834992,-500.0,0.0001,2]
[420618282,1776349835001,-151.0,0.0001,2]
[420618283,1776349835010,-500.0,0.0001,2]
[420618284,1776349835020,-151.0,0.0001,2]
[420618285,1776349835029,-500.0,0.0001,2]
[420618286,1776349835042,-151.0,0.0001,2]
[420618287,1776349835051,-151.0,0.0001,2]
[420618288,1776349835060,-151.0,0.0001,2]
[420618289,1776349835070,-151.0,0.0001,2]
[420618290,1776349835079,-151.0,0.0001,2]
[420618291,1776349835090,-151.0,0.0001,2]
[420618292,1776349835099,-151.0,0.0001,2]
[420618293,1776349835110,-151.0,0.0001,2]
[420618294,1776349835120,-289.28670008,0.0001,2]
[420618295,1776349835130,-151.0,0.0001,2]
[420618296,1776349835139,-151.0,0.0001,2]
[420618297,1776349835149,-151.0,0.0001001,2]
[420618298,1776349835159,-500.0,0.0001001,2]
[420618299,1776349835168,-151.0,0.00010065,2]
[420618300,1776349835178,-500.0,0.00010065,2]
[420618301,1776349835188,-152.0,0.00010079,7]
[420618302,1776349835199,-151.163,0.00010082,2]
[420618303,1776349835209,-1264.0,0.00010082,2]
[420618304,1776349835219,-926.0,0.00010082,2]
[420618305,1776349835228,-1218.0,0.00010082,2]
[420618306,1776349835237,-2473.0,0.00010082,2]
[420618307,1776349835247,-622.0,0.00010082,2]
[420618308,1776349835256,-160.0,0.00010099,3]
[420618309,1776349835266,-1984.1077029,0.000101,2]
[420618310,1776349835275,-350.0,0.00010111,2]
[420618311,1776349835284,-151.0,0.0001012,2]
[420618312,1776349835294,-500.0,0.0001012,2]
[420618313,1776349835303,-350.0,0.00010124,2]
[420618314,1776349835312,-164.9027629,0.00010175,2]
[420618315,1776349835322,-500.0,0.00010175,2]
[420618316,1776349835331,-5000.0,0.00010182,2]
[420618317,1776349835340,-394.8299319,0.00010182,2]
[420618318,1776349835350,-500.0,0.0001023,2]
[420618319,1776349835359,-1633.0,0.0001023,5]
[420618320,1776349835368,-152.0,0.00010238,7]
[420618321,1776349835378,-2843.244,0.00010251,2]
[420618322,1776349835387,-267.544,0.00010251,2]
[420618323,1776349835397,-160.0,0.00010277,2]
[420618324,1776349835406,-500.0,0.00010285,2]
[420618325,1776349835416,-440.93399658,0.0001029,2]
[420618326,1776349835425,-484.95455,0.0001029,2]
[420618327,1776349835434,-402.96767933,0.000103,2]
[420618328,1776349835444,-176.72386244,0.000103,2]
[420618329,1776349835453,-180.66993184,0.000103,2]
[420618330,1776349835463,-200.0,0.00010307,2]
[420618331,1776349835472,-250.0,0.00010307,2]
[420618332,1776349835482,-999.9371922,0.00010334,2]
[420618333,1776349835491,-200.0,0.00010338,2]
[420618334,1776349835501,-1481.23780761,0.00010338,2]
[420618335,1776349835511,-156.587,0.00010338,2]
[420618336,1776349835520,-181.08010149,0.00010338,2]
[420618337,1776349835530,-743.50770149,0.00010338,2]
[420618338,1776349835539,-500.0,0.0001034,2]
[420618339,1776349835548,-484.95456,0.0001034,2]
[420618340,1776349835558,-500.0,0.00010373,2]
[420618341,1776349835567,-500.0,0.00010373,2]
[420618342,1776349835577,-500.0,0.00010373,2]
[420618343,1776349835588,-562.81492935,0.00010373,2]
[420618344,1776349835597,-677.03,0.00010384,2]
[420618345,1776349835606,-500.0,0.00010388,2]
[420618346,1776349835615,-500.0,0.00010388,2]
[420618347,1776349835626,-311.36747762,0.00010388,2]
[420618348,1776349835635,-500.0,0.00010388,2]
[420618349,1776349835644,-525.17972427,0.00010388,2]
[420618350,1776349835654,-11220.7997907,0.00010389,2]
[420618351,1776349835664,-20099.99358066,0.00010389,2]
[420618352,1776349835679,-13846.07806114,0.00010389,2]
[420618353,1776349835689,-863.2239539,0.00010389,2]
[420618354,1776349835698,-3712.20443348,0.00010389,2]
[420618355,1776349835710,-1740.83836842,0.00010389,2]
[420618356,1776349835719,-61582.83296733,0.00010389,2]
[420618357,1776349835731,-51323.04748042,0.00010389,2]
[420618358,1776349835776,-1160.87387984,0.00010389,2]
[420618365,1776349838236,-302.10287384,0.00010373,2]
[420618366,1776349838246,-935.11312616,0.00010389,2]
[420618367,1776349838258,-4838.39282936,0.00010389,2]
[420618368,1776349838332,-285.62777364,0.00010389,2]
[420618369,1776349838343,-1726.80344663,0.00010389,2]
[420618370,1776349838354,-992.61883384,0.00010389,2]
[420618371,1776349838365,-341.95185915,0.00010389,2]
[420618372,1776349838377,-2264.38414979,0.00010389,2]
[420618373,1776349838389,-1762.72436774,0.00010389,2]
[420618579,1776349840973,-14.81414034,9.789e-05,2]
[420618581,1776349840986,-632.62107901,9.789e-05,2]
[420618583,1776349840996,-4498.44856332,0.00010389,2]
[420618586,1776349841012,-1185.12451634,0.00010389,2]
[420618588,1776349841023,-4659.15377776,0.00010389,2]
[420618590,1776349841035,-425.63,0.00010389,2]
[420618593,1776349841047,-9105.93876457,0.00010389,2]
[420618875,1776349843336,-3528.0,0.00010082,2]
[420618877,1776349843346,-161.29063154,0.00010349,2]
[420618879,1776349843357,-3013.26526846,0.00010349,2]
[420618881,1776349843367,-40172.43481281,0.00010389,2]
[420618883,1776349843376,-3220.7929037,0.00010389,2]
[420618885,1776349843386,-191761.7892669,0.00010389,2]
[420618887,1776349843395,-151.0,0.00010389,2]
[420618889,1776349843404,-151.0,0.00010389,2]
[420618891,1776349843414,-151.0,0.00010389,2]
[420618893,1776349843423,-151.0,0.00010389,2]
[420618895,1776349843432,-151.0,0.00010389,2]
[420618897,1776349843441,-151.0,0.00010389,2]
[420618899,1776349843451,-151.0,0.00010389,2]
[420618901,1776349843461,-151.0,0.00010389,2]
[420618903,1776349843471,-151.0,0.00010389,2]
[420618905,1776349843481,-151.0,0.00010389,2]
[420618907,1776349843491,-151.0,0.00010389,2]
[420618910,1776349843502,-151.0,0.00010389,2]
[420618911,1776349843513,-250.0,0.0001039,2]
[420618912,1776349843522,-1515.0,0.0001039,5]
[420618913,1776349843532,-360091.87681164,0.0001039,2]
[420619185,1776349847519,-500.0,0.0001,2]
[420619186,1776349847528,-300.0,0.00010388,2]
[420619187,1776349847538,-369.93261407,0.0001039,2]
[420619188,1776349847862,-6539.97413063,0.0001039,2]
[420619189,1776349847873,-55830.26927815,0.0001039,2]
[420619190,1776349847884,-165.2404,0.0001039,2]
[420619191,1776349847894,-151.0,0.0001039,2]
[420619192,1776349847904,-151.0,0.0001039,2]
[420619193,1776349847913,-151.0,0.0001039,2]
[420619194,1776349847923,-151.0,0.0001039,2]
[420619195,1776349847933,-151.0,0.0001039,2]
[420619196,1776349847942,-151.0,0.0001039,2]
[420619197,1776349847952,-484.95455,0.0001039,2]
[420619198,1776349847961,-484.95455,0.0001039,2]
[420619199,1776349847971,-60.10625409,0.0001039,2]
[420619200,1776349848030,-939.89374591,0.0001039,2]
[420619201,1776349848039,-232.36752709,0.0001039,2]
[420619202,1776349848066,-877.73247291,0.0001039,2]
[420619203,1776349848076,-750.37020307,0.0001039,2]
[420619204,1776349848086,-241.427,0.00010399,2]
[420619205,1776349848095,-155.0,0.00010399,2]
[420619206,1776349848105,-1101.69807098,0.00010399,3]
[420619207,1776349848115,-1572.4282722,0.000104,2]
[420619208,1776349848128,-7654.95306752,0.000104,2]
[420619209,1776349848160,-8374.57473752,0.000104,2]
[420619210,1776349848181,-65764.57476274,0.000104,2]
[420619211,1776349848194,-354.42310879,0.000104,2]
[420619212,1776349848206,-12955.43684629,0.000104,2]
[420619213,1776349848226,-218413.7182927,0.000104,2]
[420619214,1776349937560,150.0,0.000138,120]
[420619215,1776350124773,150.0,0.000138,120]
[420619216,1776350312565,150.0,0.000138,120]
[420619217,1776350509675,150.0,0.000138,120]
[420619218,1776350707668,150.0,0.000138,120]
[420619219,1776350794464,429.41362669,0.000165,30]
[420619221,1776350892047,150.0,0.000138,120]
[420619225,1776351032298,-159.0,9.041e-05,3]
[420619226,1776351032310,-250.0,9.222e-05,2]
[420619227,1776351032320,-150.43891779,9.345e-05,2]
[420619228,1776351032330,-150.0,9.345e-05,2]
[420619229,1776351032340,-150.0,9.345e-05,2]
[420619230,1776351032351,-150.0,9.345e-05,2]
[420619231,1776351032361,-150.0,9.345e-05,2]
[420619232,1776351032371,-250.0,9.37e-05,2]
[420619233,1776351032381,-2000.0,9.403e-05,2]
[420619234,1776351032390,-167.51,9.424e-05,2]
[420619235,1776351032401,-300.0,9.49e-05,2]
[420619236,1776351032412,-1200.0,9.49e-05,2]
[420619237,1776351032421,-458.41557743,9.491e-05,2]
[420619238,1776351032431,-500.0,9.491e-05,2]
[420619239,1776351032440,-293.95021677,9.491e-05,2]
[420619240,1776351032450,-500.0,9.491e-05,2]
[420619241,1776351032459,-500.0,9.491e-05,2]
[420619242,1776351032470,-500.0,9.491e-05,2]
[420619243,1776351032479,-250.0,9.491e-05,2]
[420619244,1776351032489,-515.47367815,9.491e-05,2]
[420619245,1776351032498,-500.0,9.491e-05,2]
[420619246,1776351032508,-155.59115507,9.491e-05,2]
[420619247,1776351032519,-500.0,9.491e-05,2]
[420619248,1776351032529,-500.0,9.491e-05,2]
[420619249,1776351032539,-500.0,9.491e-05,2]
[420619250,1776351032548,-500.0,9.491e-05,2]
[420619251,1776351032559,-500.0,9.491e-05,2]
[420619252,1776351032569,-500.0,9.491e-05,2]
[420619253,1776351032578,-500.0,9.491e-05,2]
[420619254,1776351032588,-500.0,9.491e-05,2]
[420619255,1776351032598,-500.0,9.491e-05,2]
[420619256,1776351032608,-500.0,9.491e-05,2]
[420619257,1776351032617,-500.0,9.491e-05,2]
[420619258,1776351032632,-500.0,9.491e-05,2]
[420619259,1776351032642,-500.0,9.491e-05,2]
[420619260,1776351032652,-500.0,9.491e-05,2]
[420619261,1776351032662,-500.0,9.491e-05,2]
[420619262,1776351032672,-500.0,9.491e-05,2]
[420619263,1776351032682,-500.0,9.491e-05,2]
[420619264,1776351032693,-500.0,9.491e-05,2]
[420619265,1776351032703,-500.0,9.491e-05,2]
[420619266,1776351032713,-500.0,9.491e-05,2]
[420619267,1776351032723,-500.0,9.491e-05,2]
[420619268,1776351032732,-500.0,9.491e-05,2]
[420619269,1776351032742,-500.0,9.491e-05,2]
[420619270,1776351032752,-500.0,9.491e-05,2]
[420619271,1776351032762,-321.819722,9.491e-05,2]
[420619272,1776351032773,-500.0,9.491e-05,2]
[420619273,1776351032783,-500.0,9.491e-05,2]
[420619275,1776351032792,-150.0,9.491e-05,2]
[420619277,1776351032802,-10864.0238,9.492e-05,2]
[420619279,1776351032812,-3669.6966,9.492e-05,2]
[420619281,1776351032822,-6781.3842,9.492e-05,2]
[420619283,1776351032831,-1000.0,9.492e-05,2]
[420619285,1776351032841,-2500.0,9.492e-05,2]
[420619287,1776351032851,-163885.57173315,9.492e-05,2]
[420619289,1776351032864,-13589.82335312,9.492e-05,2]
[420619290,1776351032883,-2991.19134687,9.492e-05,2]
[420619291,1776351032894,-1849.66319346,9.492e-05,2]
[420619292,1776351032912,-397.84647269,9.492e-05,2]
[420619293,1776351038512,-708.38683977,9.492e-05,2]
[420619294,1776351038525,-357.82128326,9.492e-05,2]
[420619295,1776351038563,-2484.84122466,9.492e-05,2]
[420619296,1776351038576,-3913.38736795,9.492e-05,2]
[420619297,1776351038618,-46010.88348507,9.492e-05,2]
[420619298,1776351038628,-500.0,9.573e-05,2]
[420619299,1776351038638,-503.27294265,9.573e-05,2]
[420619300,1776351038649,-500.0,9.573e-05,2]
[420619301,1776351038659,-151.0,9.589e-05,2]
[420619302,1776351038669,-151.0,9.59e-05,2]
[420619303,1776351038679,-150.0,9.59e-05,2]
[420619304,1776351038690,-285.50676789,9.591e-05,2]
[420619305,1776351038700,-306.2171561,9.591e-05,2]
[420619306,1776351038710,-500.0,9.591e-05,2]
[420619307,1776351038720,-435.18076013,9.591e-05,2]
[420619308,1776351038731,-214.54791467,9.591e-05,2]
[420619309,1776351038742,-500.0,9.591e-05,2]
[420619310,1776351038752,-500.0,9.591e-05,2]
[420619311,1776351038763,-626.54853167,9.591e-05,2]
[420619312,1776351038773,-621.94,9.591e-05,2]
[420619313,1776351038783,-2468.137,9.591e-05,2]
[420619314,1776351038793,-214.035,9.591e-05,2]
[420619315,1776351038804,-70198.8766663,9.592e-05,2]
[420619316,1776351038816,-796.01445531,9.592e-05,2]
[420619317,1776351038829,-3494.11304809,9.592e-05,2]
[420619318,1776351038841,-725.85,9.592e-05,2]
[420619319,1776351038857,-2992.09560657,9.592e-05,2]
[420619320,1776351038870,-1089.19505249,9.592e-05,2]
[420619321,1776351038882,-7597.2,9.592e-05,2]
[420619322,1776351038895,-3530.44028493,9.592e-05,2]
[420619323,1776351038908,-2692.33929163,9.592e-05,2]
[420619324,1776351038934,-874.22355268,9.592e-05,2]
[420619325,1776351038951,-748.26893567,9.592e-05,2]
[420619326,1776351038964,-736.37025968,9.592e-05,2]
[420619327,1776351038976,-315.0,9.592e-05,2]
[420619328,1776351038988,-7426.14551341,9.592e-05,2]
[420619330,1776351039000,-86050.75771922,9.592e-05,2]
[420619331,1776351039013,-302.036,9.592e-05,2]
[420619332,1776351039038,-691.58645727,9.592e-05,2]
[420619333,1776351039052,-844.7587847,9.592e-05,2]
[420619339,1776351040584,-6667.26990554,9.592e-05,2]
[420619340,1776351040800,-49831.96705997,9.592e-05,2]
[420619341,1776351040813,-20153.67777399,9.592e-05,2]
[420619342,1776351040855,-899.72188916,9.592e-05,2]
[420619343,1776351040963,-3199.48359193,9.592e-05,2]
[420619344,1776351040976,-676.47384104,9.592e-05,2]
[420619345,1776351040989,-2618.41366601,9.592e-05,2]
[420619346,1776351041065,-3337.79532226,9.592e-05,2]
[420619348,1776351041081,-252.57139391,9.592e-05,2]
[420619351,1776351041093,-11238.88023036,9.592e-05,2]
[420619353,1776351041106,-1025.49280924,9.592e-05,2]
[420619355,1776351041118,-9136.69,9.592e-05,2]
[420619358,1776351041133,-875.89626483,9.592e-05,2]
[420619487,1776351048572,-1605.23074206,9.592e-05,2]
[420619488,1776351048821,-57326.51376121,9.592e-05,2]
[420619489,1776351048833,-3698.7882948,9.592e-05,2]
[420619490,1776351048844,-43296.99403303,9.592e-05,2]
[420619491,1776351048856,-17198.33181195,9.592e-05,2]
[420619492,1776351048868,-279298.75428076,9.592e-05,2]
[420619493,1776351048878,-1000.0,9.593e-05,2]
[420619494,1776351048887,-578.20924308,9.835e-05,2]
[420619495,1776351048897,-200.0,9.835e-05,2]
[420619496,1776351048907,-500.0,9.835e-05,2]
[420619497,1776351048916,-1428.38747117,9.835e-05,2]
[420619498,1776351048927,-721.12765535,9.835e-05,2]
[420619499,1776351048936,-151.0,9.835e-05,2]
[420619500,1776351048945,-200.0,9.835e-05,2]
[420619501,1776351048955,-500.0,9.835e-05,2]
[420619502,1776351048964,-500.0,9.835e-05,2]
[420619503,1776351048973,-500.0,9.835e-05,2]
[420619504,1776351048982,-151.0,9.835e-05,2]
[420619505,1776351048991,-500.0,9.835e-05,2]
[420619506,1776351049000,-743.50770149,9.835e-05,2]
[420619507,1776351049009,-500.0,9.835e-05,2]
[420619508,1776351049019,-500.0,9.835e-05,2]
[420619509,1776351049028,-500.0,9.835e-05,2]
[420619510,1776351049037,-500.0,9.835e-05,2]
[420619511,1776351049046,-500.0,9.835e-05,2]
[420619512,1776351049055,-500.0,9.835e-05,2]
[420619513,1776351049064,-500.0,9.835e-05,2]
[420619514,1776351049074,-174.61919141,9.835e-05,2]
[420619515,1776351049083,-209.40437684,9.835e-05,2]
[420619516,1776351049093,-621.94,9.865e-05,2]
[420619517,1776351049102,-500.0,9.89e-05,2]
[420619518,1776351049111,-151.0,9.89e-05,2]
[420619519,1776351049120,-500.0,9.945e-05,2]
[420619520,1776351049130,-151.0,9.945e-05,2]
[420619521,1776351049139,-250.0,9.945e-05,2]
[420619522,1776351049150,-5000.0,9.945e-05,2]
[420619523,1776351049159,-370.5155379,9.973e-05,2]
[420619524,1776351049169,-500.0,0.0001,2]
[420619525,1776351049180,-151.0,0.0001,2]
[420619526,1776351049189,-151.0,0.0001,2]
[420619527,1776351049199,-500.0,0.0001,2]
[420619528,1776351049208,-151.0,0.0001,2]
[420619529,1776351049217,-200.0,0.0001,2]
[420619530,1776351049226,-151.0,0.0001,2]
[420619531,1776351049236,-151.0,0.0001,2]
[420619532,1776351049245,-151.0,0.0001,2]
[420619533,1776351049256,-151.0,0.0001,2]
[420619534,1776351049265,-151.0,0.0001,2]
[420619535,1776351049275,-151.0,0.0001,2]
[420619536,1776351049284,-151.0,0.0001,2]
[420619537,1776351049294,-151.0,0.0001,2]
[420619538,1776351049304,-151.0,0.0001,2]
[420619539,1776351049314,-370.5155379,0.00010027,2]
[420619540,1776351049323,-164.38,0.00010031,2]
[420619541,1776351049333,-500.0,0.00010055,2]
[420619542,1776351049342,-151.0,0.00010055,2]
[420619543,1776351049352,-370.5155379,0.00010055,2]
[420619544,1776351049361,-370.5155379,0.0001011,2]
[420619545,1776351049810,-500.0,0.0001011,2]
[420619546,1776351049832,-151.0,0.0001011,2]
[420619547,1776351049841,-812.24786116,0.00010121,2]
[420619548,1776351049851,-370.5155379,0.00010137,2]
[420619549,1776351049859,-621.94,0.00010139,2]
[420619550,1776351049868,-370.5155379,0.00010164,2]
[420619551,1776351049878,-151.0,0.00010165,2]
[420619552,1776351049887,-370.5155379,0.00010219,2]
[420619553,1776351049896,-151.0,0.0001022,2]
[420619554,1776351049905,-1047.0,0.00010226,2]
[420619555,1776351049916,-3528.0,0.00010226,2]
[420619556,1776351049927,-1348.0,0.00010226,2]
[420619557,1776351049938,-622.0,0.00010226,2]
[420619558,1776351049947,-150.0,0.00010226,2]
[420619559,1776351049956,-1264.0,0.00010226,2]
[420619560,1776351049965,-1218.0,0.00010226,2]
[420619561,1776351049975,-926.0,0.00010226,2]
[420619562,1776351049984,-250.0,0.00010226,2]
[420619563,1776351049993,-6028.0,0.00010226,2]
[420619564,1776351050002,-2473.0,0.00010226,2]
[420619565,1776351050011,-3777.0,0.00010226,2]
[420619566,1776351050021,-370.5155379,0.00010247,2]
[420619567,1776351050030,-802.0,0.00010263,5]
[420619568,1776351050039,-151.0,0.00010275,2]
[420619569,1776351050048,-161.65151,0.000103,2]
[420619570,1776351050058,-161.65152,0.000103,2]
[420619571,1776351050067,-370.5155379,0.00010301,2]
[420619572,1776351050076,-160.0,0.0001031,2]
[420619573,1776351050086,-161.65152,0.0001032,2]
[420619574,1776351050095,-370.5155379,0.00010329,2]
[420619575,1776351050104,-161.65152,0.0001035,2]
[420619576,1776351050114,-200.0,0.00010356,2]
[420619577,1776351050123,-200.0,0.00010356,2]
[420619578,1776351050133,-171.81701457,0.00010373,2]
[420619579,1776351050143,-200.0,0.00010383,2]
[420619580,1776351050153,-1481.23780761,0.00010383,2]
[420619581,1776351050162,-156.587,0.00010383,2]
[420619582,1776351050171,-771.01748645,0.00010383,2]
[420619583,1776351050180,-181.08010149,0.00010383,2]
[420619584,1776351050190,-370.5155379,0.00010384,2]
[420619585,1776351050199,-150.0,0.00010384,2]
[420619586,1776351050208,-150.0,0.00010384,2]
[420619587,1776351050217,-165.0285,0.0001039,2]
[420619588,1776351050226,-500.24680205,0.0001039,2]
[420619589,1776351050235,-1450.2774028,0.00010392,2]
[420619590,1776351050244,-1697.6488261,0.00010392,2]
[420619591,1776351050254,-3062.3495806,0.00010392,2]
[420619592,1776351050263,-7278.138424,0.00010392,2]
[420619593,1776351050272,-1488.2293284,0.00010392,2]
[420619594,1776351050282,-82648.4226996,0.00010392,2]
[420619595,1776351050291,-1003.0,0.000104,5]